Cogmind - Beta 17 @@@ ROGUE MODE // 2026.07.18 @ 19:38:24 Player: rz Result: Core destroyed Performance ------------- Evolutions (4) 2000 Regions Visited (12) 2400 Robots Destroyed (155) 775 Value Destroyed (5977) 5977 Prototype IDs (13) 260 Alien Tech Used (0) 0 Bonus (1746) 1746 TOTAL SCORE: 13158 Bonus ------- High Alert Combat Kills 446 Entered Garrisons 200 Entered DSFs 500 Met Data Miner 300 Acquired ECA 300 Cogmind --------- Core Integrity 0/850 Matter 231/300 Energy 100/100 System Corruption 0% Temperature Cool (0) Movement Core (50) Location -6/DSF Parts ------- > --- POWER (1) -------- (None) > --- PROPULSION (4) --- (None) > --- UTILITY (5) ------ (None) > --- WEAPON (5) ------- (None) > --- INVENTORY (5) ---- Angular Momentum Engine Improved Signal Interpreter Makeshift Light Armor Plating Heavy Assault Cannon Peak State ------------ > --- POWER ------------ Fission Core > --- PROPULSION ------- Light Treads Light Treads Improved Medium Treads > --- UTILITY ---------- Improved Heat Sink Huge Storage Unit Improved Sensor Array Improved Signal Interpreter Hardened Medium Armor Plating > --- WEAPON ----------- High-powered Shotgun High-powered Shotgun High-powered Shotgun High-powered Shotgun Coil Gun > --- INVENTORY -------- Angular Momentum Engine Light Angular Momentum Engine Fission Core Linear Gravjet Improved Heat Sink Huge Storage Unit High-capacity Matter Pod Improved Signal Interpreter Light Armor Plating Makeshift Light Armor Plating Makeshift Light Armor Plating System Restoration Module High-powered Tractor Beam High-powered Shotgun Heavy Battle Rifle Heavy Assault Cannon Axe [Rating: 48] Favorites ----------- Power Light Nuclear Core Engine Light Deuterium Engine Power Core Light Nuclear Core Propulsion Light Treads Treads Light Treads Utility Large Storage Unit Device Advanced Heat Sink Storage Large Storage Unit Processor Improved Signal Interpreter Hackware Hacking Suite Protection Light Armor Plating Weapon Heavy Assault Rifle Energy Gun EM Pulse Gun Ballistic Gun Heavy Assault Rifle Launcher Grenade Launcher Impact Weapon Great Maul Slashing Weapon Axe Build | -11 -10 -9 -8 -8 -8 -7 -7 -7 -7 -6 -6 -6 ------- Run | Yrd Mat Mat Mat Gar Mat Fac Low Low Dat Pro Fac DSF Slots Evolved 8 | . . 2 2 . . 2 . . . . 2 . Power . | . . . . . . . . . . . . . Propulsion 2 | . . . . . . 1 . . . . 1 . Utility 3 | . . . 1 . . 1 . . . . 1 . Weapon 3 | . . 2 1 . . . . . . . . . Parts Attached 97 | 6 10 9 15 16 18 10 . 3 . 6 4 . Power 11 | 1 1 . 2 4 . 1 . . . 1 1 . Engine 5 | 1 . . 1 1 . 1 . . . 1 . . Core 6 | . 1 . 1 3 . . . . . . 1 . Reactor . | . . . . . . . . . . . . . Propulsion 19 | 2 2 . 3 2 5 2 . . . 2 1 . Treads 19 | 2 2 . 3 2 5 2 . . . 2 1 . Leg . | . . . . . . . . . . . . . Wheel . | . . . . . . . . . . . . . Hover . | . . . . . . . . . . . . . Flight . | . . . . . . . . . . . . . Utility 28 | 1 4 2 7 4 4 2 . . . 2 2 . Device 13 | . 3 . 4 2 2 1 . . . 1 . . Storage 4 | 1 1 1 . . . . . . . . 1 . Processor 1 | . . . . . . 1 . . . . . . Hackware 1 | . . . . . 1 . . . . . . . Protection 9 | . . 1 3 2 1 . . . . 1 1 . Artifact . | . . . . . . . . . . . . . Weapon 39 | 2 3 7 3 6 9 5 . 3 . 1 . . Energy Gun 1 | 1 . . . . . . . . . . . . Energy Cannon . | . . . . . . . . . . . . . Ballistic Gun 34 | 1 3 6 3 4 9 4 . 3 . 1 . . Ballistic Cannon . | . . . . . . . . . . . . . Launcher 1 | . . 1 . . . . . . . . . . Special Weapon . | . . . . . . . . . . . . . Impact Weapon 1 | . . . . 1 . . . . . . . . Slashing Weapon 2 | . . . . 1 . 1 . . . . . . Piercing Weapon . | . . . . . . . . . . . . . Special Melee Weapon . | . . . . . . . . . . . . . Unidentified Prototypes 2 | . . 2 . . . . . . . . . . Parts Lost 30 | . 1 . 2 1 13 2 . 1 . 5 . 5 Power 3 | . 1 . . . 1 . . . . 1 . . Propulsion 7 | . . . . . 1 . . . . 4 . 2 Utility 8 | . . . 1 1 3 . . 1 . . . 2 Weapon 12 | . . . 1 . 8 2 . . . . . 1 Highest Loss Streak 6 | . 1 . 1 1 6 1 . 1 . 3 . 5 To Critical Strikes . | . . . . . . . . . . . . . Average Backups 14 | 1 10 14 14 14 13 13 14 14 15 14 14 14 Power . | . . . . . . . . . . 1 2 2 Propulsion 3 | . 2 4 4 4 4 3 3 3 3 1 . . Utility 4 | . . 2 3 3 5 5 7 8 9 8 8 8 Weapon 5 | . 6 7 7 6 4 3 4 3 3 3 3 3 Tool/Special . | . . . . . . . . . . . . . Unused Backups 29 | . 3 3 5 3 1 1 . 2 . 1 . 10 Power 3 | . . 1 . . . . . . . . . 2 Propulsion 6 | . 2 1 1 1 1 . . . . . . . Utility 9 | . 1 . 1 . . 1 . . . . . 6 Weapon 11 | . . 1 3 2 . . . 2 . 1 . 2 Tool/Special . | . . . . . . . . . . . . . Average Slot Usage (%) 97 | . 90 99 99 100 98 94 100 98 92 98 89 79 Engine 5 | . 7 . 5 4 5 7 7 7 7 6 . . Core 3 | . 5 11 3 4 3 . . . . . 5 5 Treads 20 | . 28 22 18 18 18 23 23 23 23 21 18 16 Device 9 | . 5 2 7 9 9 15 15 13 7 14 13 10 Storage 8 | . 14 11 9 9 9 7 7 7 7 7 6 5 Processor 2 | . . . . . . 5 7 7 7 7 6 5 Protection 5 | . . 8 10 9 7 . . . . . 4 4 Ballistic Gun 40 | . 26 43 44 44 43 32 38 38 38 37 32 29 Peak Build Rating 48 | 6 12 23 31 36 38 38 38 40 35 41 47 48 Average Rating 30 | 4 9 19 28 31 32 32 38 38 35 38 44 40 On Entrance 27 | . 6 12 23 30 36 23 38 38 35 35 38 46 Avg Prop Armor Cover (%) . | . . . . . . . . . . . . . Naked Turns 7 | . . . . . . . . . . . . 7 Heaviest Build 117 | 14 32 40 51 52 52 47 47 47 46 48 117 117 Greatest Support 70 | 40 40 40 40 50 50 60 60 60 60 60 70 70 Greatest Overweight (x) 2 | . . . 1 1 1 . . . . 1 1 2 Average Overweight (x) . | . . . 1 . . . . . . . . . Largest Inventory Capacity 25 | 8 15 15 15 15 15 15 15 15 15 15 25 25 Average Capacity 15 | 7 14 15 15 15 15 15 15 15 15 15 21 22 Most Carried 19 | 3 15 15 15 15 15 15 14 15 15 15 16 19 Average Carried 14 | 1 10 14 14 14 13 13 14 14 15 14 14 14 Final Capacity 25 | 8 15 15 15 15 15 15 15 15 15 15 25 5 Final Carried 15 | 3 15 15 15 15 11 14 14 15 15 13 15 5 Class Distribution -------------------- 45% | Scavenger-Tank 29% | Scavenger-Skirmisher 8% | Tank 7% | Mutant 5% | Skirmisher 3% | Scavenger-Gunner Dominant Class ---------------- Mutant | -10/Materials Scavenger-Tank | -9/Materials Tank | -8/Materials Scavenger-Tank | -8/Garrison Scavenger-Tank | -8/Materials Scavenger-Skirmisher | -7/Factory Scavenger-Skirmisher | -7/Lower Caves Scavenger-Skirmisher | -7/Lower Caves Scavenger-Skirmisher | -7/Data Miner Scavenger-Skirmisher | -6/Proximity Caves Skirmisher | -6/Factory Skirmisher | -6/DSF Resources | -11 -10 -9 -8 -8 -8 -7 -7 -7 -7 -6 -6 -6 ----------- Run | Yrd Mat Mat Mat Gar Mat Fac Low Low Dat Pro Fac DSF Matter Collected 5754 | 169 438 242 1438 1052 1250 192 . 416 . 550 . 7 Remotely 314 | . 200 . . 114 . . . . . . . . Salvage Created 6450 | . 559 472 1462 1350 1939 213 . 189 . 266 . . Parts 365 | . 33 38 92 66 101 17 . 9 . 9 . . Haulers Intercepted 10 | . 2 2 3 . 3 . . . . . . . Recyclers Shooed 3 | . . 1 1 . 1 . . . . . . . Parts Field Recycled . | . . . . . . . . . . . . . Retrieved Matter . | . . . . . . . . . . . . . Parts Self-Destructed 16 | . . . . . . . . 8 . 8 . . Prevented 1 | . . . . . . . . . . 1 . . Parts Restored . | . . . . . . . . . . . . . Kills | -11 -10 -9 -8 -8 -8 -7 -7 -7 -7 -6 -6 -6 ------- Run | Yrd Mat Mat Mat Gar Mat Fac Low Low Dat Pro Fac DSF Combat Hostiles Destroyed 132 | . 12 9 28 29 35 6 . 6 . 7 . . Guns 130 | . 12 8 28 28 35 6 . 6 . 7 . . AOE 2 | . . 1 . 1 . . . . . . . . Classes Destroyed 17 | . 5 1 3 3 3 1 . 1 . . . . Worker 4 | . . . 3 . 1 . . . . . . . Builder 3 | . . . 3 . . . . . . . . . Hauler 10 | . 2 2 3 . 3 . . . . . . . Recycler 3 | . 1 1 . . 1 . . . . . . . Operator 3 | . 1 . . . 2 . . . . . . . Swarmer 30 | . 6 3 9 . 6 3 . 3 . . . . Grunt 60 | . 6 5 10 18 14 . . 3 . 4 . . Brawler 1 | . . . . . 1 . . . . . . . Duelist 2 | . . . . 1 1 . . . . . . . Protector 1 | . . . . 1 . . . . . . . . Sentry 25 | . . 1 8 6 8 2 . . . . . . Demolisher 1 | . . . . 1 . . . . . . . . Specialist 4 | . . . . . 4 . . . . . . . Hunter 5 | . . . 1 2 . . . . . 2 . . Programmer 2 | . . . . . . 1 . . . 1 . . Heavy 1 | . . . . . 1 . . . . . . . Samaritan 1 | . . . . . . . . 1 . . . . Best Kill Streak 8 | . 7 7 8 6 6 3 . 3 . 4 . . Combat Bots Only 7 | . 7 5 7 6 6 3 . 3 . 4 . . Max Kills in Single Turn 3 | . 1 3 2 2 2 1 . 2 . 1 . . Gunslinging 1 | . . 1 1 1 1 . . 1 . . . . Exploded 1 | . . 1 . 1 . . . . . . . . Melee . | . . . . . . . . . . . . . Uniques/NPCs Destroyed . | . . . . . . . . . . . . . Combat | -11 -10 -9 -8 -8 -8 -7 -7 -7 -7 -6 -6 -6 -------- Run | Yrd Mat Mat Mat Gar Mat Fac Low Low Dat Pro Fac DSF Hostile Shots Fired 686 | . 83 14 119 98 147 82 . 25 . 97 . 21 Missed 227 | . 22 6 35 36 44 42 . 4 . 31 . 7 Hits 459 | . 61 8 84 62 103 40 . 21 . 66 . 14 Melee 1 | . . . . . 1 . . . . . . . Projectile 458 | . 61 8 84 62 102 40 . 21 . 66 . 14 AOE 1 | . . . . . . 1 . . . . . . Critical Strikes 15 | . 1 1 4 2 4 1 . 1 . 1 . . Damage Taken 8436 | . 599 104 1183 1078 2029 514 . 336 . 1059 . 1534 Core 1635 | . 62 29 110 137 215 11 . 31 . 189 . 851 Absorbed by Shields . | . . . . . . . . . . . . . Core Remaining (%) 70 | 100 75 92 . . 16 . . . . 67 . . Volleys Fired 280 | . 43 12 63 48 69 13 . 10 . 22 . . Largest 5 | . 2 4 5 5 5 5 . 5 . 5 . . Hottest 130 | . 60 99 124 124 120 123 . 125 . 130 . . Shots Fired 1230 | . 86 48 297 240 340 63 . 50 . 106 . . Gun 1228 | . 86 46 297 240 340 63 . 50 . 106 . . Cannon . | . . . . . . . . . . . . . Launcher 2 | . . 2 . . . . . . . . . . Special . | . . . . . . . . . . . . . Kinetic 1226 | . 84 46 297 240 340 63 . 50 . 106 . . Thermal . | . . . . . . . . . . . . . Explosive 2 | . . 2 . . . . . . . . . . Electromagnetic 2 | . 2 . . . . . . . . . . . Robot Hit Streak 29 | . 6 8 19 22 29 4 . 9 . 3 . . Robot Miss Streak 8 | . 5 4 7 3 5 7 . 8 . 8 . . Penetration Max . | . . . . . . . . . . . . . Secondary Targets 36 | . 4 2 4 13 6 1 . 3 . 3 . . Max Gunslinging Chain 1 | . 1 1 1 1 1 1 . 1 . 1 . . Shots Hit Robots 753 | . 49 22 163 163 237 34 . 26 . 59 . . Core Hits 319 | . 21 16 64 66 92 16 . 17 . 27 . . Critical Kills 4 | . . 1 . 1 1 1 . . . . . . Critical Parts Destroyed 10 | . . . 2 3 4 1 . . . . . . Critical Strikes 14 | . . 1 2 4 5 2 . . . . . . Destroy 14 | . . 1 2 4 5 2 . . . . . . Melee Attacks 10 | . . . . 5 1 3 . . . 1 . . Impact 2 | . . . . 1 1 . . . . . . . Slashing 8 | . . . . 4 . 3 . . . 1 . . Piercing . | . . . . . . . . . . . . . Sneak Attacks . | . . . . . . . . . . . . . Combat Hostiles . | . . . . . . . . . . . . . Follow-up Attacks . | . . . . . . . . . . . . . Damage Inflicted 12557 | . 754 456 2914 2582 3680 567 . 516 . 1088 . . Guns 12318 | . 718 361 2914 2474 3680 567 . 516 . 1088 . . Cannons . | . . . . . . . . . . . . . Explosions 239 | . 36 95 . 108 . . . . . . . . Melee . | . . . . . . . . . . . . . Ramming . | . . . . . . . . . . . . . Kinetic 12287 | . 687 361 2914 2474 3680 567 . 516 . 1088 . . Thermal 36 | . 36 . . . . . . . . . . . Explosive 203 | . . 95 . 108 . . . . . . . . Electromagnetic 31 | . 31 . . . . . . . . . . . Impact . | . . . . . . . . . . . . . Slashing . | . . . . . . . . . . . . . Piercing . | . . . . . . . . . . . . . Highest Corruption 2 | . . . . . . 2 2 2 2 2 . . Average Corruption 1 | . . . . . . 1 2 2 2 2 . . Corruption Purged . | . . . . . . . . . . . . . Corruption Blocked . | . . . . . . . . . . . . . Effects 32 | . . . . . . 2 4 11 . 15 . . Message Errors 8 | . . . . . . . 2 1 . 5 . . Matter Fused 5 | . . . . . . . . 3 . 2 . . Heat Flow Errors 5 | . . . . . . 1 . 2 . 2 . . Energy Discharges 2 | . . . . . . . 1 . . 1 . . Parts Fused 1 | . . . . . . . . . . 1 . . Data Loss (minor) 8 | . . . . . . 1 1 5 . 1 . . Data Loss (major) 1 | . . . . . . . . . . 1 . . Misfires 1 | . . . . . . . . . . 1 . . Weapon Failures 1 | . . . . . . . . . . 1 . . Overload Shots . | . . . . . . . . . . . . . Overflow Damage . | . . . . . . . . . . . . . Projectiles . | . . . . . . . . . . . . . Explosions . | . . . . . . . . . . . . . Melee . | . . . . . . . . . . . . . Knockbacks . | . . . . . . . . . . . . . Impact . | . . . . . . . . . . . . . Kinetic . | . . . . . . . . . . . . . Secondary . | . . . . . . . . . . . . . Self-Inflicted Damage 107 | . . . . 107 . . . . . . . . Shots 1 | . . . . 1 . . . . . . . . Rammed . | . . . . . . . . . . . . . Targets Rammed . | . . . . . . . . . . . . . Kicked . | . . . . . . . . . . . . . Crushed . | . . . . . . . . . . . . . Highest Temperature 364 | . 29 126 364 216 60 97 . 178 . 168 . 3 Average Temperature 60 | . 18 44 106 48 8 41 . 36 . 21 . 3 Received Heat Transfer 1974 | . 201 60 504 441 423 66 . 108 . 171 . . Effects 5 | . . . 5 . . . . . . . . . Interference 4 | . . . 4 . . . . . . . . . Short Circuit 1 | . . . 1 . . . . . . . . . Siege Activations . | . . . . . . . . . . . . . Martial Activations . | . . . . . . . . . . . . . Shielding Activations . | . . . . . . . . . . . . . Robots Disrupted . | . . . . . . . . . . . . . Combat Hostiles . | . . . . . . . . . . . . . Robots Corrupted . | . . . . . . . . . . . . . Combat Hostiles . | . . . . . . . . . . . . . Parts Fried . | . . . . . . . . . . . . . Impact Corruptions . | . . . . . . . . . . . . . Robots Melted . | . . . . . . . . . . . . . Combat Hostiles . | . . . . . . . . . . . . . Parts Melted 1 | . . . . . . . . 1 . . . . Heat Transferred . | . . . . . . . . . . . . . Parts Sabotaged . | . . . . . . . . . . . . . Parts Stolen . | . . . . . . . . . . . . . Parts Stripped . | . . . . . . . . . . . . . Power Chain Reactions 1 | . 1 . . . . . . . . . . . Alert | -11 -10 -9 -8 -8 -8 -7 -7 -7 -7 -6 -6 -6 ------- Run | Yrd Mat Mat Mat Gar Mat Fac Low Low Dat Pro Fac DSF Maximum Alert Level 3 | . . 1 1 3 2 . . . . . . . Low Security (%) 51 | 100 100 92 78 5 . 100 . . . . 100 100 Level 1 20 | . . 7 21 21 49 . . . . . . . Level 2 20 | . . . . 41 50 . . . . . . . Level 3 7 | . . . . 31 . . . . . . . . Level 4 . | . . . . . . . . . . . . . Level 5 . | . . . . . . . . . . . . . High Security . | . . . . . . . . . . . . . Max Security . | . . . . . . . . . . . . . Peak Influence 1073 | . 192 219 263 1073 686 196 . . . . . 18 Initial 522 | . . 37 . 103 522 196 . . . . . 3 Average 284 | . 99 95 114 601 435 117 . . . . . 3 Influence Increases 3916 | . 343 282 785 980 1024 177 . 140 . 165 5 15 Destroy 0b10 Robot/C 2620 | . 240 180 560 560 700 120 . 120 . 140 . . Destroy 0b10 Robot/NC 120 | . 20 15 45 5 35 . . . . . . . Destroy Leader 520 | . 64 24 156 20 186 40 . 20 . 10 . . Successful Hack 29 | . . . . 16 8 . . . . . 5 . Disable Machine 90 | . 15 15 . . 45 15 . . . . . . Anti-Garrison Action 300 | . . . . 300 . . . . . . . . Destroy Structure 117 | . 4 18 9 79 5 2 . . . . . . Partial Spotted 15 | . . . . . 15 . . . . . . . Lose Combat Pursuer 105 | . . 30 15 . 30 . . . . 15 . 15 Influence Decreases 3916 | . 254 371 626 66 1665 518 91 120 20 165 . 20 Entered New Map 952 | . . 52 . 56 551 236 35 . 20 . . 2 Time Decay 2106 | . 244 319 456 . 534 262 56 110 . 125 . . Lost Part 258 | . 10 . 20 10 130 20 . 10 . 40 . 18 Purge Threat 600 | . . . 150 . 450 . . . . . . . Squads Dispatched 21 | . 3 . 4 . 12 1 . . . . . 1 Investigation 1 | . 1 . . . . . . . . . . . Extermination 1 | . . . . . . 1 . . . . . . Reinforcement 9 | . 2 . 2 . 4 . . . . . . 1 Assault 1 | . . . . . 1 . . . . . . . Garrison 9 | . . . 2 . 7 . . . . . . . Intercept . | . . . . . . . . . . . . . Searches Triggered . | . . . . . . . . . . . . . Construction Impeded 1 | . . . 1 . . . . . . . . . Haulers Reinforced . | . . . . . . . . . . . . . Active Scanning Responses . | . . . . . . . . . . . . . Cargo Convoy Interrupts . | . . . . . . . . . . . . . Stealth | -11 -10 -9 -8 -8 -8 -7 -7 -7 -7 -6 -6 -6 --------- Run | Yrd Mat Mat Mat Gar Mat Fac Low Low Dat Pro Fac DSF Distress Signals 17 | . 1 6 4 . 5 1 . . . . . . Communications Jammed . | . . . . . . . . . . . . . Distress Signals . | . . . . . . . . . . . . . Times Spotted 179 | . 18 17 37 29 52 8 . 6 . 8 . 4 Peak Tracking Total 7 | . 5 6 7 4 7 4 . 3 . 4 . 3 Tactical Retreats 7 | . . 2 1 . 2 . . . . 1 . 1 Traps | -11 -10 -9 -8 -8 -8 -7 -7 -7 -7 -6 -6 -6 ------- Run | Yrd Mat Mat Mat Gar Mat Fac Low Low Dat Pro Fac DSF Traps Triggered 7 | . 1 . . 3 1 1 . . . . 1 . Indirectly . | . . . . . . . . . . . . . Trap Hack Attempts . | . . . . . . . . . . . . . Triggered . | . . . . . . . . . . . . . Disarmed . | . . . . . . . . . . . . . Reprogrammed . | . . . . . . . . . . . . . Reused . | . . . . . . . . . . . . . Traps Extracted . | . . . . . . . . . . . . . Installed . | . . . . . . . . . . . . . Triggered . | . . . . . . . . . . . . . Machines | -11 -10 -9 -8 -8 -8 -7 -7 -7 -7 -6 -6 -6 ---------- Run | Yrd Mat Mat Mat Gar Mat Fac Low Low Dat Pro Fac DSF Machines Disabled 10 | . 1 1 . 4 3 1 . . . . . . Max in Single Turn 2 | . 1 1 . 2 1 1 . . . . . . Garrison Relay 2 | . . . . 2 . . . . . . . . Phase Generator 1 | . . . . 1 . . . . . . . . Machines Repaired . | . . . . . . . . . . . . . Machines Dismantled . | . . . . . . . . . . . . . Machines Sabotaged . | . . . . . . . . . . . . . Overloaded Fab Kills . | . . . . . . . . . . . . . Hacking | -11 -10 -9 -8 -8 -8 -7 -7 -7 -7 -6 -6 -6 --------- Run | Yrd Mat Mat Mat Gar Mat Fac Low Low Dat Pro Fac DSF Machines Accessed 29 | . . 3 10 3 6 . . 1 4 . 2 . Terminals 18 | . . 1 6 3 6 . . . . . 2 . Fabricators . | . . . . . . . . . . . . . Repair Stations . | . . . . . . . . . . . . . Recycling Units 3 | . . 1 2 . . . . . . . . . Scanalyzers 2 | . . 1 1 . . . . . . . . . Garrison Access 1 | . . . 1 . . . . . . . . . Total Hacks 77 | . . 7 16 6 14 . . 1 29 . 4 . Successful 45 | . . 4 5 1 4 . . 1 29 . 1 . Failed 32 | . . 3 11 5 10 . . . . . 3 . Catastrophic 8 | . . . 4 2 1 . . . . . 1 . Database Lockouts . | . . . . . . . . . . . . . Manual 24 | . . 2 8 . 13 . . . . . 1 . Terminals 37 | . . 2 11 6 14 . . . . . 4 . Fabricators . | . . . . . . . . . . . . . Repair Stations . | . . . . . . . . . . . . . Recycling Units 5 | . . 2 3 . . . . . . . . . Scanalyzers 4 | . . 3 1 . . . . . . . . . Garrison Access 1 | . . . 1 . . . . . . . . . Terminal Hacks 38 | . . . 2 1 4 . . 1 29 . 1 . Record 11 | . . . . . . . . . 11 . . . Part Schematic 11 | . . . . . . . . . 11 . . . Robot Schematic 4 | . . . . . . . . . 4 . . . Prototype ID Bank 3 | . . . . . . . . . 3 . . . Open Door 1 | . . . . . . . . 1 . . . . Open DSF 1 | . . . . . . . . . . . 1 . Branch Access Points 1 | . . . . . 1 . . . . . . . Unreport Threat 4 | . . . 1 . 3 . . . . . . . Zone Layout 1 | . . . 1 . . . . . . . . . Security Stations 1 | . . . . 1 . . . . . . . . Fabricator Hacks . | . . . . . . . . . . . . . Repair Station Hacks . | . . . . . . . . . . . . . Recycling Unit Hacks 2 | . . 1 1 . . . . . . . . . Retrieve Components 2 | . . 1 1 . . . . . . . . . Scanalyzer 4 | . . 3 1 . . . . . . . . . Retrieve Study 4 | . . 3 1 . . . . . . . . . Garrison Access Hacks 1 | . . . 1 . . . . . . . . . Unlock Access 1 | . . . 1 . . . . . . . . . Unauthorized Hacks . | . . . . . . . . . . . . . Terminals . | . . . . . . . . . . . . . Fabricators . | . . . . . . . . . . . . . Repair Stations . | . . . . . . . . . . . . . Recycling Units . | . . . . . . . . . . . . . Scanalyzers . | . . . . . . . . . . . . . Garrison Access . | . . . . . . . . . . . . . Data Cores Recovered 1 | . . . . . 1 . . . . . . . Used . | . . . . . . . . . . . . . Hacking Detections 19 | . . 2 8 2 5 . . . . . 2 . Full Trace Events 1 | . . . . 1 . . . . . . . . Feedback Events . | . . . . . . . . . . . . . Feedback Blocked . | . . . . . . . . . . . . . Robot Schematics Acquired 4 | . . . . . . . . . 4 . . . Robots Built . | . . . . . . . . . . . . . Authchips . | . . . . . . . . . . . . . Time . | . . . . . . . . . . . . . Total Robot Build Rating . | . . . . . . . . . . . . . Part Schematics Acquired 11 | . . . . . . . . . 11 . . . Parts Built . | . . . . . . . . . . . . . Authchips . | . . . . . . . . . . . . . Time . | . . . . . . . . . . . . . Total Part Build Rating . | . . . . . . . . . . . . . Part Studies Acquired 4 | . . 3 1 . . . . . . . . . Parts Repaired . | . . . . . . . . . . . . . Time . | . . . . . . . . . . . . . Parts Recycled . | . . . . . . . . . . . . . Recycled Matter . | . . . . . . . . . . . . . Retrieved Matter . | . . . . . . . . . . . . . Retrieved Components 9 | . . 9 . . . . . . . . . . Parts Scanalyzed . | . . . . . . . . . . . . . Part Schematics Acquired . | . . . . . . . . . . . . . Parts Damaged . | . . . . . . . . . . . . . Bothacking | -11 -10 -9 -8 -8 -8 -7 -7 -7 -7 -6 -6 -6 ------------ Run | Yrd Mat Mat Mat Gar Mat Fac Low Low Dat Pro Fac DSF Used RIF Installer . | . . . . . . . . . . . . . Robots Hacked . | . . . . . . . . . . . . . Non-combat . | . . . . . . . . . . . . . Combat . | . . . . . . . . . . . . . Robot Hacks Applied . | . . . . . . . . . . . . . Relay Couplers Released 9 | . . . . 9 . . . . . . . . Machine Destruction 9 | . . . . 9 . . . . . . . . Fabnet Peak Effective % . | . . . . . . . . . . . . . Robots Rewired . | . . . . . . . . . . . . . Allies Hacked . | . . . . . . . . . . . . . Hacks Repelled . | . . . . . . . . . . . . . Allies | -11 -10 -9 -8 -8 -8 -7 -7 -7 -7 -6 -6 -6 -------- Run | Yrd Mat Mat Mat Gar Mat Fac Low Low Dat Pro Fac DSF Total Allies . | . . . . . . . . . . . . . Largest Group . | . . . . . . . . . . . . . Highest-Rated Group . | . . . . . . . . . . . . . Highest-Rated Ally . | . . . . . . . . . . . . . Initial Warlord ECA Mod 5 | . . . . . 5 4 4 4 4 3 3 3 Total Orders . | . . . . . . . . . . . . . Ally Attacks . | . . . . . . . . . . . . . Total Damage . | . . . . . . . . . . . . . Kills . | . . . . . . . . . . . . . Allies Corrupted . | . . . . . . . . . . . . . Allies Melted . | . . . . . . . . . . . . . Intel | -11 -10 -9 -8 -8 -8 -7 -7 -7 -7 -6 -6 -6 ------- Run | Yrd Mat Mat Mat Gar Mat Fac Low Low Dat Pro Fac DSF Active Infowar (turns) 3283 | . 173 145 . . . 452 430 719 146 825 334 59 Sensors 2965 | . . . . . . 452 430 719 146 825 334 59 Structural 318 | . 173 145 . . . . . . . . . . Robot Analysis Total . | . . . . . . . . . . . . . Derelict Logs Recovered 6 | . . . . . . . 2 1 . 3 . . Drone Launches . | . . . . . . . . . . . . . Drone Recoveries . | . . . . . . . . . . . . . Exploration | -11 -10 -9 -8 -8 -8 -7 -7 -7 -7 -6 -6 -6 ------------- Run | Yrd Mat Mat Mat Gar Mat Fac Low Low Dat Pro Fac DSF Turns Passed 8950 | 83 580 760 1377 1539 1517 561 430 719 146 825 334 79 Spaces Moved 3984 | 47 260 268 518 567 655 282 260 398 90 427 165 47 Core 20 | 3 . . . . . . . . . . . 17 Treads 3964 | 44 260 268 518 567 655 282 260 398 90 427 165 30 Legs . | . . . . . . . . . . . . . Wheels . | . . . . . . . . . . . . . Hover . | . . . . . . . . . . . . . Flight . | . . . . . . . . . . . . . Fastest Speed 50 | 50 160 160 200 165 160 163 163 163 163 160 160 50 Average Speed 179 | 152 160 160 209 230 163 163 163 163 163 167 196 156 Slowest Speed 280 | 160 160 160 225 245 245 163 163 163 163 200 213 280 Overloaded Moves . | . . . . . . . . . . . . . Propulsion Burnouts . | . . . . . . . . . . . . . Robots Hopped . | . . . . . . . . . . . . . Potential Cave-ins . | . . . . . . . . . . . . . Cave-ins Triggered . | . . . . . . . . . . . . . Exploration Rate (%) 44 | 3 44 27 65 69 53 11 42 56 68 53 5 81 Regions Visited 12 Branch Regions 4 Pre-discovered Areas 3 | . . . . . . . 1 1 1 . . . Known Exits Taken 7 | . . . 1 . . 1 1 1 1 1 1 . Unknown Exits Taken 4 | 1 1 1 . . 1 . . . . . . . Scrap Searched 3 | . . . . . . . . 2 . 1 . . Spaces Dug 4 | . . . . 1 . 2 . . . 1 . . Terrain Destroyed 96 | . 4 18 . 70 . 2 . . . 2 . . Melee 4 | . . . . 1 . 2 . . . 1 . . Projectile 2 | . . . . 1 . . . . . 1 . . AOE 90 | . 4 18 . 68 . . . . . . . . Terrain Rammed . | . . . . . . . . . . . . . Walls Destroyed . | . . . . . . . . . . . . . Machines Disabled . | . . . . . . . . . . . . . Actions | -11 -10 -9 -8 -8 -8 -7 -7 -7 -7 -6 -6 -6 --------- Run | Yrd Mat Mat Mat Gar Mat Fac Low Low Dat Pro Fac DSF Total 5126 | 55 339 572 716 688 913 343 266 443 89 478 173 51 Wait 576 | . 1 262 83 27 141 20 7 18 . 17 . . Move 3973 | 46 259 267 518 566 654 281 259 397 89 426 164 47 Hop . | . . . . . . . . . . . . . Pick Up 82 | 3 18 10 12 4 10 10 . 8 . 3 1 3 Fast Attach 26 | 6 3 1 4 1 3 1 . . . 1 5 1 Attach 38 | . 3 2 5 3 13 7 . 1 . 4 . . Detach 3 | . 1 1 . . . 1 . . . . . . Swap 61 | . 4 7 12 16 11 4 . 2 . 3 2 . Drop 73 | . 7 10 19 14 11 3 . 7 . 1 1 . Fire 280 | . 43 12 63 48 69 13 . 10 . 22 . . Melee 10 | . . . . 5 1 3 . . . 1 . . Ram . | . . . . . . . . . . . . . Kick . | . . . . . . . . . . . . . Crush . | . . . . . . . . . . . . . Escape Stasis 4 | . . . . 4 . . . . . . . . Rewire . | . . . . . . . . . . . . . Trap . | . . . . . . . . . . . . . Miscellaneous . | . . . . . . . . . . . . . Route ------- -11/Scrapyard -10/Materials -9/Materials -8/Materials (discovered 2 exits: [*Fac] / Gar) -8/Garrison (discovered 2 exits: *Mat x2) -8/Materials (discovered 2 exits: [*Fac x2]) -7/Factory -7/Lower Caves -7/Lower Caves -7/Data Miner -6/Proximity Caves -6/Factory -6/DSF (discovered 1 exit: [*Fac]) History --------- Turn | Location | Event 11 | -11/Scrapyard | Discovered new exit (range 16) 84 | -11/Scrapyard | Entered Materials 302 | -10/Materials | Build established: Mutant 319 | -10/Materials | Destroyed 7 combat bots 640 | -10/Materials | Discovered new exit (range 16) 664 | -10/Materials | Entered another Materials area 664 | -9/Materials | Evolved 2 slots: Weapon x2 1097 | -9/Materials | Build established: Scavenger-Tank 1120 | -9/Materials | Discovered new exit (range 16) 1424 | -9/Materials | Entered another Materials area 1424 | -8/Materials | Evolved 2 slots: Utility x1, Weapon x1 2239 | -8/Materials | Build established: Tank 2304 | -8/Materials | Destroyed 7 combat bots 2493 | -8/Materials | Discovered new exit (range 16) 2614 | -8/Materials | Garrison activated, responded to threat 2801 | -8/Materials | Identified exit to Garrison 2801 | -8/Materials | Entered Garrison 2815 | -8/Garrison | Learned Materials security intel 2943 | -8/Garrison | Triggered checkpoint 2954 | -8/Garrison | Build established: Scavenger-Tank 3171 | -8/Garrison | Triggered checkpoint 3207 | -8/Garrison | Triggered checkpoint 3363 | -8/Garrison | Discovered new exit (range 10) 3465 | -8/Garrison | Triggered checkpoint 3470 | -8/Garrison | Garrison Relay disabled 3695 | -8/Garrison | Triggered checkpoint 3819 | -8/Garrison | Discovered new exit (range 13) 3853 | -8/Garrison | Phase Generator disabled 4105 | -8/Garrison | Triggered checkpoint 4112 | -8/Garrison | Garrison Relay disabled 4340 | -8/Garrison | Entered Materials 4437 | -8/Materials | Garrison activated, responded to threat 4740 | -8/Materials | First assault squad dispatched 4817 | -8/Materials | Core integrity fell below 50% 4967 | -8/Materials | Garrison activated, responded to threat 5052 | -8/Materials | Discovered new exit (range 7) 5592 | -8/Materials | Discovered new exit (range 16) 5629 | -8/Materials | Core integrity fell below 20% 5664 | -8/Materials | Lost 6 parts (3u3w) 5857 | -8/Materials | Entered Factory 5857 | -7/Factory | Evolved 2 slots: Propulsion x1, Utility x1 5916 | -7/Factory | Build established: Scavenger-Gunner 6251 | -7/Factory | Build established: Scavenger-Skirmisher 6367 | -7/Factory | Discovered new exit (range 8) 6395 | -7/Factory | Identified exit to Lower Caves 6418 | -7/Factory | Entered Lower Caves 6424 | -7/Lower Caves | Met a Warlord Commander 6425 | -7/Lower Caves | Learned location of Warlord (-5) 6426 | -7/Lower Caves | Warlord Commander delivered Encrypted Comm Array 6575 | -7/Lower Caves | Learned 8 Factory zone layouts 6660 | -7/Lower Caves | Encountered a Warlord checkpoint 6820 | -7/Lower Caves | Identified exit to Lower Caves 6848 | -7/Lower Caves | Entered another Lower Caves area 7500 | -7/Lower Caves | Discovered new exit (range 12) 7526 | -7/Lower Caves | Identified exit to Data Miner 7567 | -7/Lower Caves | Entered Data Miner 7567 | -7/Data Miner | Discovered new exit (range 6) 7603 | -7/Data Miner | Met Data Miner 7631 | -7/Data Miner | Learned location of Section 7 (-2) 7631 | -7/Data Miner | Acquired the access code to Warlord's prototype stash 7675 | -7/Data Miner | Received God Mode back door access code from Data Miner 7711 | -7/Data Miner | Identified exit to Proximity Caves 7713 | -7/Data Miner | Entered Proximity Caves 7843 | -6/Proximity Caves | Learned location of 1 exit from Lower Caves 7875 | -6/Proximity Caves | Found DCF Scrap (15 items) 7909 | -6/Proximity Caves | Identified exit to Factory 8403 | -6/Proximity Caves | Ambushed by research squad 8471 | -6/Proximity Caves | Lost 3 parts (3n) 8538 | -6/Proximity Caves | Entered Factory 8538 | -6/Factory | Evolved 2 slots: Propulsion x1, Utility x1 8862 | -6/Factory | Build established: Skirmisher 8872 | -6/Factory | Identified exit to DSF 8872 | -6/Factory | Entered DSF 8872 | -6/DSF | Met a pair of Sappers preparing to destroy DSF 8903 | -6/DSF | Additional patrols routed to DSF 8941 | -6/DSF | Released all parts (10) 8946 | -6/DSF | Core integrity fell below 50% 8949 | -6/DSF | Core integrity fell below 20% 8950 | -6/DSF | Discovered new exit (range 14) 8951 | -6/DSF | Core destroyed Last Messages --------------- 08932_ A-15 Conveyor destroyed. 08933_ Lgt. Treads+ destroyed. 08938_ Hrd. Medium Armor Plating destroyed. 08941_ Released Hpw. Shotgun. 08941_ Released Huge Storage Unit. 08941_ Released Imp. Medium Treads. 08941_ Released Coil Gun. 08941_ Released Imp. Heat Sink. 08941_ Released Hpw. Shotgun. 08941_ Released Imp. Signal Interpreter. 08941_ Released Hpw. Shotgun. 08941_ Released Fission Core. 08942_ A-15 Conveyor destroyed. 08942_ Acquired Axe. 08943_ A-15 Conveyor heat damages Transport Network Coupler. 08945_ A-15 Conveyor destroyed. 08945_ Axe destroyed. 08949_ H-61 Shepherd destroyed. 08950_ EXIT=FOUND Map ----- +----------------------------------------------------+ | | | | | | | ????????????????????????????????????? | | ????????????????????????????????????? | | ????????????????????????????????????? | | ????????????????????????????????????? | | ????????????????????????????????????? | | ????????????????????????????????????? | | ????????????????????????????????????? | | ????????????????????????????????????? | | ?????????????????????????""?????????? | | ?????????? ???????????? <"????????? | | ????????? ??????????? "????????? | | ?????????# #""????????? "????????? | | ???????### " " ???????? #????????? | | #????### ""#??????# ##???????? | | ##### " #?????[ [#???????? | | # " * ###??[ [????????? | | " ]%! #?## ##???????? | | " ! ## #???????? | | # #???????? | | # ????????? | | "## ###??????? | | ;# ! #??????? | | ;@ ! #??????? | | // #?????? | | //##?????? | | !! //#??????? | | ; ;??????? | | ;; #??????? | | ;;;;;;##??????? | | #???????? | | ## # ???????? | | #######???????? | | #?????????????? | | #?????????????? | | #?????????????? | | ##?????????????? | | #??????????????? | | ##??????????????? | | #???????????????? | | ????????????????? | | ===!??????????????????????? | | ??????????????????????????? | | ??? ????????????????????????????? | | ????????????????????????????????????? | | ????????????????????????????????????? | | ????????????????????????????????????? | | ????????????????????????????????????? | +----------------------------------------------------+ Best States ------------- Heat Dissipation 67 Energy Generation 18 Energy Capacity 310 Matter Stores 300 Matter Capacity 300 Sight Range 16 Robot Scan Range 15 Terrain Scan Density 10 Armor Coverage 300 Evasion (%) 50 Recoil Reduction 3 Offensive Hacking 10 Item Schematics ----------------- Combat Drone Bay | -7/Data Miner | Free Lgt. Regenerative Plating | -7/Data Miner | Free Thermal Defense Suite | -7/Data Miner | Free Com. Ion Cannon | -7/Data Miner | Free Nuclear Pulse Array | -7/Data Miner | Free Imp. Kinecellerator | -7/Data Miner | Free Enh. Gauss Cannon | -7/Data Miner | Free Enh. Optical Array | -7/Data Miner | Free Adv. Cooling System | -7/Data Miner | Free Adv. Reaction Control System | -7/Data Miner | Free Multireflex Exoskeleton | -7/Data Miner | Free Robot Schematics ------------------ G-47 Trooper | -7/Data Miner | Free M-28 Smith | -7/Data Miner | Free L-41 Fighter | -7/Data Miner | Free Y-54 Guardian | -7/Data Miner | Free Fabricated ------------ Nothing Repaired ---------- Nothing Studied --------- Hvy. Assault Rifle | -9/Materials | Hacked Lgt. Assault Rifle | -9/Materials | Hacked Lgt. Treads | -9/Materials | Hacked Deuterium Engine | -8/Materials | Hacked Alien Tech Used ----------------- None Achievements -------------- None Challenges ------------ None Game ------ Seed OmegaWeldingDiverter Manual? 0 Play Time 01:08:42 Cumulative 96.4 hours Start 2026.07.18 @ 18:11:06 End 2026.07.18 @ 19:38:24 Sessions 1 Manual Loads 0 Difficulty Rogue Special Mode None Game No. 106 Rogue 52 Adventurer 54 Explorer 0 Win Type - Total 2 Types 2/0/0/0/0/0/0/0/0/0 Lore% 44 Gallery% 47 Achievement% 43 Wizard Run 0 Options --------- Layout 1 ASCII 0 Keyboard 0 Movement Mouse Keybinds 1 Fullscreen 1 Font 32/Tamsyn Map View 50x35 Zoom Use 0% Tactical HUD 1 Map Filters NONE Filters NONE Steam 1 RUN: c9771397-bd51-42c8-bf6c-6396da1c30ef